bitfinex/quotes_BTCUSD_20220213
["timestamp","ask_amount","ask_price","bid_price","bid_amount"]
[1644780537546,0.52481836,42135.0,42134.0,0.11873]
[1644780539608,0.19746532,42135.0,42134.0,0.11873]
[1644780539798,0.04986532,42135.0,42134.0,0.11873]
[1644780539997,0.059365,42136.0,42134.0,0.11873]
[1644780540396,0.00035389,42137.0,42134.0,0.11873]
[1644780540802,0.00035389,42137.0,42135.0,0.333079]
[1644780540997,0.00035389,42137.0,42136.0,0.27306113]
[1644780541298,0.059355,42141.0,42136.0,0.27306113]
[1644780541496,0.059355,42141.0,42134.0,0.11873]
[1644780541497,8.521e-05,42138.0,42134.0,0.11873]
[1644780542499,0.059359,42139.0,42134.0,0.11873]
[1644780542702,0.118718,42139.0,42134.0,0.11873]
[1644780543450,0.168718,42139.0,42134.0,0.11873]
[1644780543650,0.168318,42139.0,42134.0,0.11873]
[1644780544252,0.059358,42138.0,42134.0,0.11873]
[1644780546853,0.059362,42137.0,42134.0,0.11873]
[1644780549300,0.059358,42138.0,42134.0,0.11873]
[1644780549500,0.00034685,42140.0,42134.0,0.11873]
[1644780549704,0.118711,42141.0,42134.0,0.11873]
[1644780549903,0.00034685,42140.0,42134.0,0.11873]
[1644780550945,0.168711,42141.0,42134.0,0.11873]
[1644780551146,0.00034301,42140.0,42134.0,0.11873]
[1644780552252,0.00034301,42140.0,42135.0,0.2721843]
[1644780552449,0.00034301,42140.0,42134.0,0.11873]
[1644780553250,0.168711,42141.0,42134.0,0.11873]
[1644780553450,0.00034301,42140.0,42134.0,0.11873]
[1644780554054,0.00034301,42140.0,42137.0,0.07056329]
[1644780554451,0.168711,42141.0,42137.0,0.07056329]
[1644780554694,0.16905457,42141.0,42137.0,0.07056329]
[1644780555096,0.05034357,42141.0,42137.0,0.07056329]
[1644780555294,0.00034357,42141.0,42137.0,0.07056329]
[1644780555495,0.00034357,42141.0,42138.0,0.26626396]
[1644780555694,0.1,42143.0,42138.0,0.26626396]
[1644780555896,0.3243845,42145.0,42138.0,0.26626396]
[1644780555897,0.00034357,42141.0,42139.0,0.333079]
[1644780556901,0.00023666,42145.0,42139.0,0.333079]
[1644780557099,0.00034356,42142.0,42139.0,0.333079]
[1644780558098,0.00023666,42147.0,42139.0,0.33193961]
[1644780558341,0.00034348,42143.0,42139.0,0.33193961]
[1644780558544,0.00034348,42143.0,42139.0,0.280114]
[1644780559244,0.00023666,42145.0,42139.0,0.280114]
[1644780559443,0.00034347,42143.0,42139.0,0.280114]
[1644780560249,0.00034347,42143.0,42138.0,0.26626396]
[1644780560445,0.059351,42144.0,42139.0,0.333099]
[1644780560647,0.059351,42144.0,42140.0,0.333099]
[1644780560848,0.00034347,42143.0,42138.0,0.26626396]
[1644780561447,0.05969547,42143.0,42139.0,0.333099]
[1644780561646,0.05969547,42143.0,42138.0,0.26626396]
[1644780561647,0.059352,42143.0,42138.0,0.26626396]
[1644780561847,0.05969549,42143.0,42138.0,0.26626396]
[1644780562104,0.05969549,42143.0,42139.0,0.333099]
[1644780562298,0.05969549,42143.0,42138.0,0.26626396]
[1644780562497,0.05969549,42143.0,42139.0,0.333099]
[1644780562701,0.059354,42142.0,42134.0,0.11873]
[1644780563007,0.39499746,42141.0,42134.0,0.11873]
[1644780563300,0.54499746,42141.0,42134.0,0.11873]
[1644780563499,0.0476,42140.0,42134.0,0.11873]
[1644780563701,0.23181089,42137.0,42134.0,0.11873]
[1644780563902,0.106967,42136.0,42134.0,0.11873]
[1644780564499,0.156967,42136.0,42134.0,0.11873]
[1644780564703,0.216334,42136.0,42134.0,0.11873]
[1644780565302,0.2757,42136.0,42134.0,0.11873]
[1644780565946,0.2257,42136.0,42134.0,0.11873]
[1644780566146,0.2757,42136.0,42134.0,0.11873]
[1644780567548,0.54165909,42136.0,42134.0,0.11873]
[1644780567950,0.3757,42136.0,42134.0,0.11873]
[1644780568350,0.2257,42136.0,42134.0,0.11873]
[1644780568552,0.0476,42136.0,42134.0,0.11873]
[1644780569601,0.106961,42136.0,42134.0,0.11873]
[1644780569993,0.26366595,42135.0,42134.0,0.11873]
[1644780570193,0.37302795,42135.0,42134.0,0.11873]
[1644780570394,0.47302795,42135.0,42134.0,0.11873]
[1644780571194,0.57382895,42135.0,42134.0,0.11873]
[1644780571396,0.52062795,42135.0,42134.0,0.11873]
[1644780574545,0.57182895,42135.0,42134.0,0.11873]
[1644780574747,0.62182895,42135.0,42134.0,0.11873]
[1644780585997,0.62182895,42135.0,42112.0,0.25048679]
[1644780585998,0.059371,42133.0,42112.0,0.25048679]
[1644780586199,0.059371,42133.0,42103.0,0.0011]
[1644780586200,1.258,42130.0,42128.0,0.00016114]
[1644780586398,0.04239709,42128.0,42122.0,0.00016114]
[1644780586604,0.39321624,42124.0,42122.0,0.00016114]
[1644780586798,0.69401724,42124.0,42122.0,0.00016114]
[1644780586996,0.97388892,42124.0,42122.0,0.00016114]
[1644780588345,0.92815937,42124.0,42122.0,0.00016114]
[1644780589445,0.86020382,42124.0,42122.0,0.00016114]
[1644780589649,0.85675381,42124.0,42122.0,0.00016114]
[1644780590648,0.58319544,42124.0,42122.0,0.0686383]
[1644780591250,0.79032426,42124.0,42122.0,0.0686383]
[1644780591448,0.73712326,42124.0,42122.0,0.0686383]
[1644780592411,0.15712882,42124.0,42122.0,0.4017373]
[1644780592610,0.26796378,42137.0,42134.0,0.06606894]
[1644780592812,0.65692665,42136.0,42134.0,0.06606894]
[1644780593012,0.5,42136.0,42134.0,0.06606894]
[1644780593210,0.27613825,42139.0,42134.0,0.06606894]
[1644780593610,0.059361,42136.0,42134.0,0.06606894]
[1644780594111,0.053201,42135.0,42134.0,0.06606894]
[1644780594811,0.059361,42136.0,42134.0,0.06606894]
[1644780595009,0.059361,42136.0,42131.0,0.24733587]
[1644780595211,0.059361,42136.0,42131.0,0.0003436]
[1644780595212,0.112564,42135.0,42131.0,0.0003436]
[1644780595412,0.059369,42134.0,42126.0,0.00016114]
[1644780595610,0.059369,42134.0,42125.0,0.1139]
[1644780595611,0.059369,42133.0,42131.0,0.0003436]
[1644780596051,0.109369,42133.0,42131.0,0.0003436]
[1644780596252,0.05,42132.0,42131.0,0.0003436]
[1644780596452,0.05,42132.0,42130.0,0.0876935]
[1644780597352,0.059368,42132.0,42129.0,0.25358697]
[1644780597552,0.168736,42132.0,42129.0,0.25358697]
[1644780597752,0.118736,42132.0,42129.0,0.25324337]
[1644780598752,0.118736,42132.0,42131.0,0.08797988]
[1644780600424,0.118736,42132.0,42129.0,0.25358697]
[1644780600727,0.118736,42132.0,42129.0,0.0003436]
[1644780601325,0.118736,42132.0,42124.0,0.00016114]
[1644780601528,0.059371,42130.0,42128.0,0.00034361]
[1644780602129,0.1,42133.0,42128.0,0.33344261]
[1644780602327,0.1,42133.0,42128.0,0.00034361]
[1644780602525,0.1,42133.0,42127.0,0.00016114]
[1644780602526,0.218732,42133.0,42127.0,0.00016114]
[1644780602725,0.168732,42133.0,42128.0,0.00034361]
[1644780603756,0.168732,42133.0,42127.0,0.00016114]
[1644780603961,0.168732,42133.0,42128.0,0.08207181]
[1644780604159,0.168732,42133.0,42128.0,0.07707181]
[1644780604358,0.05,42133.0,42129.0,0.333099]
[1644780604558,0.05,42133.0,42128.0,0.07707181]
[1644780604559,0.05,42136.0,42130.0,0.333099]
[1644780604762,0.15692665,42139.0,42132.0,0.333099]
[1644780604959,0.1965764,42143.0,42135.0,0.07001841]
[1644780605159,0.00034352,42140.0,42135.0,0.07001841]
[1644780605365,0.00034352,42140.0,42139.0,0.26776235]
[1644780606059,0.21896355,42143.0,42139.0,0.26776235]
[1644780606260,0.059352,42142.0,42139.0,0.26776235]
[1644780606460,0.11904753,42142.0,42139.0,0.26776235]
[1644780607111,0.059353,42141.0,42139.0,0.26776235]
[1644780607310,0.159353,42141.0,42139.0,0.26776235]
[1644780608508,0.1,42141.0,42139.0,0.26776235]
[1644780608909,0.059352,42142.0,42139.0,0.26776235]
[1644780608910,0.05969552,42142.0,42139.0,0.26776235]
[1644780609111,0.05958566,42144.0,42140.0,0.383099]
[1644780609112,0.00023666,42144.0,42140.0,0.383099]
[1644780609309,0.00023666,42145.0,42140.0,0.45471358]
[1644780609509,0.00023666,42146.0,42140.0,0.45471358]
[1644780609709,0.00023666,42148.0,42140.0,0.45471358]
[1644780609912,0.3,42151.0,42147.0,0.06568013]
[1644780609913,0.30023666,42151.0,42147.0,0.06568013]
[1644780610110,0.00023666,42150.0,42148.0,0.333099]
[1644780610311,0.30701155,42157.0,42148.0,0.383099]
[1644780610312,0.00023666,42151.0,42148.0,0.383099]
[1644780610512,0.118667,42160.0,42148.0,0.383099]
[1644780610513,0.00023666,42152.0,42148.0,0.383099]
[1644780610954,0.059327,42160.0,42148.0,0.383099]
[1644780611153,0.23322176,42158.0,42148.0,0.3]
[1644780611356,0.23322176,42158.0,42143.0,0.333099]
[1644780611357,0.059337,42157.0,42143.0,0.333099]
[1644780611754,0.059336,42154.0,42144.0,0.333099]
[1644780611954,0.059336,42154.0,42146.0,0.333099]
[1644780611955,0.059338,42152.0,42146.0,0.333099]
[1644780612153,0.059338,42152.0,42151.0,0.19383008]
[1644780612556,0.059338,42153.0,42151.0,0.19383008]
[1644780612753,0.00023666,42154.0,42151.0,0.19383008]
[1644780612954,0.00023666,42156.0,42151.0,0.19383008]
[1644780613153,0.00023666,42157.0,42151.0,0.19383008]
[1644780613355,0.00023666,42156.0,42152.0,0.333099]
[1644780613555,0.00038054,42156.0,42151.0,0.19383008]
[1644780614159,0.00038054,42156.0,42152.0,0.333099]
[1644780614357,0.00038054,42156.0,42151.0,0.19383008]
[1644780614608,0.00023666,42157.0,42154.0,0.07161458]
[1644780614902,0.00038054,42156.0,42154.0,0.07161458]
[1644780615805,0.00023666,42157.0,42154.0,0.07161458]
[1644780616004,0.00038053,42157.0,42154.0,0.07161458]
[1644780616605,0.00038053,42157.0,42156.0,0.42272645]
[1644780617004,0.00023666,42160.0,42156.0,0.42272645]
[1644780617205,0.118652,42161.0,42156.0,0.08962745]
[1644780617206,0.00038052,42159.0,42156.0,0.08962745]
[1644780617406,0.00038052,42159.0,42158.0,0.58719028]
[1644780617604,0.00038052,42159.0,42158.0,0.25409128]
[1644780617808,0.00038052,42159.0,42158.0,0.58719028]
[1644780618207,0.00023666,42161.0,42158.0,0.58719028]
[1644780618455,0.00023666,42162.0,42158.0,0.25409128]
[1644780618655,0.30656679,42163.0,42158.0,0.25409128]
[1644780618852,0.30633013,42163.0,42158.0,0.25409128]
[1644780619053,0.30656679,42163.0,42158.0,0.25409128]
[1644780619755,0.30656679,42163.0,42160.0,0.03580729]
[1644780619954,0.30656679,42163.0,42160.0,0.07161458]
[1644780619955,0.30633013,42163.0,42160.0,0.07161458]
[1644780620755,0.30633013,42163.0,42160.0,0.07081458]
[1644780622201,0.059324,42163.0,42160.0,0.07081458]
[1644780624405,0.11888066,42164.0,42160.0,0.07081458]
[1644780624406,0.05993965,42164.0,42160.0,0.07081458]
[1644780624802,0.05970299,42164.0,42160.0,0.03580729]
[1644780625002,0.05970299,42164.0,42159.0,0.333099]
[1644780625203,0.05970299,42164.0,42162.0,0.07081458]
[1644780625404,0.059322,42164.0,42162.0,0.07081458]
[1644780625608,0.11902599,42164.0,42162.0,0.07081458]
[1644780625856,0.11902599,42164.0,42163.0,0.08771812]
[1644780626056,0.05970299,42164.0,42163.0,0.08771812]
[1644780626455,0.05970299,42164.0,42162.0,0.07081458]
[1644780626658,0.059322,42164.0,42162.0,0.07081458]
[1644780628059,0.00037415,42165.0,42162.0,0.07081458]
[1644780628359,0.00013749,42165.0,42162.0,0.07081458]
[1644780628957,0.38577761,42166.0,42162.0,0.07081458]
[1644780629157,0.3859151,42166.0,42162.0,0.07081458]
[1644780630206,0.38577761,42166.0,42162.0,0.07849677]
[1644780630403,0.118643,42164.0,42162.0,0.07849677]
[1644780631008,0.118643,42164.0,42158.0,0.25409128]
[1644780631207,0.177965,42164.0,42152.0,0.28268075]
[1644780631409,0.059325,42161.0,42152.0,0.333099]
[1644780631609,0.059325,42161.0,42153.0,0.333099]
[1644780631805,0.05956166,42161.0,42153.0,0.333099]
[1644780632007,0.05956166,42161.0,42154.0,0.41696086]
[1644780632206,0.05956166,42161.0,42158.0,0.24264252]
[1644780632207,0.00023666,42161.0,42158.0,0.24264252]
[1644780632407,0.00023666,42162.0,42159.0,0.333099]
[1644780632606,0.00038158,42163.0,42158.0,0.24264252]
[1644780632607,0.00023666,42163.0,42158.0,0.24264252]
[1644780632807,0.00038159,42162.0,42158.0,0.24264252]
[1644780633853,0.00023666,42163.0,42158.0,0.24264252]
[1644780634056,0.00038159,42162.0,42158.0,0.24264252]
[1644780634259,0.00038159,42162.0,42141.0,0.5752]
[1644780634260,0.059332,42160.0,42141.0,0.5752]
[1644780634456,0.053201,42158.0,42144.0,0.28721051]
[1644780634655,0.053201,42158.0,42145.0,0.1144]
[1644780634856,0.30023666,42158.0,42145.0,0.1144]
[1644780635255,0.20288062,42153.0,42151.0,0.22585656]
[1644780635455,0.32155862,42153.0,42152.0,0.03500729]
[1644780635855,0.42155862,42153.0,42152.0,0.03500729]
[1644780636455,0.699037,42153.0,42152.0,0.03500729]
[1644780636655,0.218678,42153.0,42152.0,0.03500729]
[1644780636855,0.118678,42153.0,42152.0,0.03500729]
[1644780637307,0.38525293,42153.0,42152.0,0.03500729]
[1644780637707,0.48525293,42153.0,42152.0,0.03500729]
[1644780638006,0.58525293,42153.0,42152.0,0.03500729]
[1644780638607,0.81869426,42153.0,42152.0,0.03500729]
[1644780638812,0.91949526,42153.0,42152.0,0.03500729]
[1644780639009,0.86629426,42153.0,42152.0,0.03500729]
[1644780639607,0.76629426,42153.0,42152.0,0.03500729]
[1644780640010,0.81949526,42153.0,42152.0,0.03500729]
[1644780640609,0.81949526,42153.0,42152.0,0.07081458]
[1644780641052,0.81949526,42153.0,42152.0,0.07071657]
[1644780641252,0.55292033,42153.0,42152.0,0.03580729]
[1644780641456,0.81842977,42153.0,42152.0,0.03580729]
[1644780641653,0.81842977,42153.0,42152.0,0.07071657]
[1644780642456,0.76522877,42153.0,42152.0,0.07071657]
[1644780642954,0.81842977,42153.0,42152.0,0.07071657]
[1644780644612,0.91842977,42153.0,42152.0,0.07071657]
[1644780646708,0.86522877,42153.0,42152.0,0.07071657]
[1644780648210,0.91842977,42153.0,42152.0,0.07071657]
[1644780649462,0.86522877,42153.0,42152.0,0.07071657]
[1644780649864,0.63178744,42153.0,42152.0,0.07071657]
[1644780650063,0.30694,42153.0,42152.0,0.07071657]
[1644780650563,0.20694,42153.0,42152.0,0.07071657]
[1644780650763,0.30694,42153.0,42152.0,0.07071657]
[1644780653111,0.260141,42153.0,42152.0,0.07071657]
[1644780653313,0.30694,42153.0,42152.0,0.07071657]
[1644780653615,0.360141,42153.0,42152.0,0.07071657]
[1644780654219,0.30694,42153.0,42152.0,0.07071657]
[1644780655013,0.360141,42153.0,42152.0,0.07071657]
[1644780655212,0.30694,42153.0,42152.0,0.07071657]
[1644780655413,0.360141,42153.0,42152.0,0.07071657]
[1644780655614,0.20694,42153.0,42152.0,0.07071657]
[1644780655851,0.30694,42153.0,42152.0,0.07071657]
[1644780656453,0.360141,42153.0,42152.0,0.07071657]
[1644780656952,0.10694,42153.0,42152.0,0.07071657]
[1644780657153,0.30694,42153.0,42152.0,0.07071657]
[1644780657954,0.360141,42153.0,42152.0,0.07071657]
[1644780658156,0.30694,42153.0,42152.0,0.07071657]
[1644780659156,0.0476,42153.0,42152.0,0.07071657]
[1644780659607,0.05934,42154.0,42152.0,0.07071657]
[1644780659805,0.00061703,42155.0,42152.0,0.03580729]
[1644780660004,0.00038037,42155.0,42147.0,0.333099]
[1644780660208,0.00023666,42156.0,42154.0,0.07071657]
[1644780660406,0.00038036,42156.0,42154.0,0.07071657]
[1644780661412,0.11890066,42157.0,42154.0,0.07071657]
[1644780661608,0.053201,42155.0,42154.0,0.07071657]
[1644780661911,0.16928101,42157.0,42154.0,0.07065082]
[1644780662109,0.053201,42156.0,42154.0,0.07065082]
[1644780662308,0.059332,42155.0,42154.0,0.07065082]
[1644780665256,0.059332,42155.0,42150.0,0.27263948]
[1644780665456,0.059332,42155.0,42152.0,0.03580729]
[1644780666057,0.059336,42154.0,42152.0,0.03580729]
[1644780666358,0.00023666,42155.0,42153.0,0.333099]
[1644780666560,0.00061702,42156.0,42153.0,0.33998295]
[1644780666758,0.00038036,42156.0,42153.0,0.33998295]
[1644780667224,0.00038036,42156.0,42154.0,0.08443539]
[1644780667421,0.00023666,42160.0,42156.0,0.00114108]
[1644780667619,0.19131337,42162.0,42159.0,0.25386211]
[1644780668618,0.19131337,42162.0,42156.0,0.00114108]
[1644780668619,0.25063837,42162.0,42156.0,0.00114108]
[1644780668823,0.28402654,42161.0,42156.0,0.00114108]
[1644780669020,0.053201,42159.0,42156.0,0.00114108]
[1644780669218,0.00023694,42160.0,42156.0,0.00114108]
[1644780669420,0.34359148,42161.0,42156.0,0.00114108]
[1644780669621,0.15956494,42161.0,42156.0,0.00114108]
[1644780670020,0.05994578,42161.0,42156.0,0.00114108]
[1644780670223,0.05994578,42161.0,42156.0,0.33424008]
[1644780670224,0.0999,42158.0,42156.0,0.33424008]
[1644780670420,0.0999,42158.0,42156.0,0.00114108]
[1644780670720,0.00023694,42160.0,42156.0,0.33424008]
[1644780670965,0.24743027,42163.0,42157.0,0.03580729]
[1644780671167,0.00061778,42160.0,42157.0,0.03580729]
[1644780671368,0.00038084,42160.0,42157.0,0.03580729]
[1644780672265,0.05956294,42161.0,42157.0,0.03580729]
[1644780672266,0.11888794,42161.0,42157.0,0.03580729]
[1644780672469,0.059328,42160.0,42157.0,0.03580729]
[1644780672865,0.059329,42159.0,42157.0,0.03580729]
[1644780675506,0.059329,42159.0,42158.0,0.03484353]
[1644780676207,0.059329,42159.0,42158.0,0.07065082]
[1644780676408,0.054329,42159.0,42158.0,0.07065082]
[1644780678456,0.32436738,42159.0,42158.0,0.07065082]
[1644780678856,0.42436738,42159.0,42158.0,0.07065082]
[1644780679354,0.47196738,42159.0,42158.0,0.07065082]
[1644780680354,0.7203241,42159.0,42158.0,0.07065082]
[1644780680855,0.83694706,42159.0,42158.0,0.07065082]
[1644780681053,0.7735251,42159.0,42158.0,0.07065082]
[1644780681254,0.89014806,42159.0,42158.0,0.07065082]
[1644780681455,0.83694706,42159.0,42158.0,0.07065082]
[1644780681654,0.88514806,42159.0,42158.0,0.07065082]
[1644780681855,0.83194706,42159.0,42158.0,0.07065082]
[1644780682508,0.88514806,42159.0,42158.0,0.07065082]
[1644780682710,0.7685251,42159.0,42158.0,0.07065082]
[1644780683707,0.52016838,42159.0,42158.0,0.07065082]
[1644780684709,0.73245976,42159.0,42158.0,0.07065082]
[1644780685110,0.79547242,42159.0,42158.0,0.07065082]
[1644780685314,0.73245976,42159.0,42158.0,0.07065082]
[1644780685512,0.84867342,42159.0,42158.0,0.07065082]
[1644780685713,0.73245976,42159.0,42158.0,0.07065082]
[1644780686155,0.78245976,42159.0,42158.0,0.07065082]
[1644780686455,0.83245976,42159.0,42158.0,0.07065082]
[1644780686655,0.94867342,42159.0,42158.0,0.07065082]
[1644780687255,0.90107342,42159.0,42158.0,0.07065082]
[1644780687961,0.99159886,42158.0,42156.0,0.00114108]
[1644780688158,0.6221592,42157.0,42156.0,0.00114108]
[1644780688356,1.1074592,42157.0,42156.0,0.00114108]
[1644780688557,1.06166266,42157.0,42156.0,0.00114108]
[1644780688757,0.81166266,42157.0,42156.0,0.00114108]
[1644780688956,0.85278266,42157.0,42156.0,0.00114108]
[1644780690205,1.1750354,42157.0,42156.0,0.00114108]
[1644780690404,1.05882174,42157.0,42156.0,0.00114108]
[1644780690609,1.1750354,42157.0,42156.0,0.00114108]
[1644780693111,1.1845364,42157.0,42156.0,0.00114108]
[1644780693355,1.1750354,42157.0,42156.0,0.00114108]
[1644780694156,0.85278266,42157.0,42156.0,0.00114108]
[1644780694457,0.736569,42157.0,42156.0,0.00114108]
[1644780694956,0.736569,42157.0,42141.0,0.27240888]
[1644780694957,0.25289108,42145.0,42141.0,0.27240888]
[1644780695157,0.25289108,42145.0,42137.0,0.1151]
[1644780695158,0.05936,42143.0,42137.0,0.1151]
[1644780695458,0.0476,42142.0,42133.0,0.27490082]
[1644780696060,0.0476,42142.0,42132.0,0.00016114]
[1644780696062,0.059363,42140.0,42132.0,0.00016114]
[1644780696261,0.053201,42136.0,42133.0,0.3]
[1644780696462,0.053201,42136.0,42135.0,0.00038042]
[1644780697311,0.053201,42136.0,42130.0,0.00016114]
[1644780697509,0.053201,42136.0,42127.0,0.53465708]
[1644780697510,0.059367,42138.0,42137.0,0.236909]
[1644780697713,0.178105,42138.0,42137.0,0.236909]
[1644780697908,0.225705,42138.0,42137.0,0.236909]
[1644780698913,0.32281734,42138.0,42137.0,0.236909]
[1644780699315,0.42281734,42138.0,42137.0,0.236909]
[1644780699513,0.52281734,42138.0,42137.0,0.236909]
[1644780701355,0.485077,42138.0,42137.0,0.236909]
[1644780701555,0.820377,42138.0,42137.0,0.236909]
[1644780701955,0.93659066,42138.0,42137.0,0.236909]
[1644780706205,1.20006971,42138.0,42137.0,0.236909]
[1644780706405,0.93659066,42138.0,42137.0,0.236909]
[1644780707108,1.21183715,42138.0,42137.0,0.236909]
[1644780708107,0.93659066,42138.0,42137.0,0.236909]
[1644780709357,2.258,42137.0,42130.0,0.00016114]
[1644780709555,2.258,42137.0,42125.0,0.00016114]
[1644780709556,0.3353,42131.0,42125.0,0.00016114]
[1644780709758,0.123352,42130.0,42129.0,0.00151831]
[1644780710155,0.173352,42130.0,42129.0,0.00151831]
[1644780710356,0.59232343,42130.0,42129.0,0.00151831]
[1644780710559,0.92762343,42130.0,42123.0,0.00016114]
[1644780710757,0.3353,42125.0,42122.0,0.00016114]
[1644780711063,0.0476,42124.0,42121.0,0.00553163]
[1644780712112,0.106983,42124.0,42121.0,0.00553163]
[1644780712307,0.166366,42124.0,42121.0,0.00569277]
[1644780713108,0.32615303,42124.0,42121.0,0.00569277]
[1644780713309,0.32615303,42124.0,42121.0,0.00553163]
[1644780713310,0.30993937,42124.0,42121.0,0.00553163]
[1644780713506,0.30993937,42124.0,42121.0,0.00569277]
[1644780713711,0.266366,42124.0,42121.0,0.00569277]
[1644780713908,0.30080451,42124.0,42121.0,0.00569277]
[1644780714208,0.266366,42124.0,42121.0,0.00569277]
[1644780714409,0.30008965,42124.0,42121.0,0.00553163]
[1644780714607,0.20008965,42124.0,42121.0,0.00569277]
[1644780714808,0.30008965,42124.0,42121.0,0.00569277]
[1644780715208,0.30542474,42123.0,42121.0,0.00569277]
[1644780715407,0.30542474,42123.0,42121.0,0.00553163]
[1644780715408,0.0476,42122.0,42121.0,0.00553163]
[1644780715608,0.33875798,42122.0,42121.0,0.00553163]
[1644780715852,0.43875798,42122.0,42121.0,0.00553163]
[1644780716554,0.49814398,42122.0,42117.0,0.00027112]
[1644780716754,0.059386,42121.0,42119.0,0.00054101]
[1644780716959,0.059386,42121.0,42119.0,0.00037836]
[1644780716960,0.35958987,42120.0,42119.0,0.00037836]
[1644780717356,0.49840568,42120.0,42119.0,0.00037836]
[1644780717754,0.59840568,42120.0,42118.0,0.00016265]
[1644780717955,0.30533898,42119.0,42117.0,0.00043377]
[1644780718155,0.0476,42118.0,42117.0,0.00027112]
[1644780718357,0.4423,42118.0,42116.0,0.00126265]
[1644780718557,0.4423,42118.0,42116.0,0.0011]
[1644780718558,0.6353,42117.0,42116.0,0.0011]
[1644780718755,0.4329,42117.0,42116.0,0.0011]
[1644780718958,0.5329,42117.0,42116.0,0.0011]
[1644780720009,0.5329,42117.0,42115.0,0.00236265]
[1644780720209,0.3353,42116.0,42115.0,0.0022]
[1644780720408,0.4829,42116.0,42115.0,0.0022]
[1644780720608,0.80380792,42116.0,42115.0,0.0011]
[1644780720808,0.92002158,42116.0,42115.0,0.0011]
[1644780721516,1.009412,42115.0,42113.0,0.0001]
[1644780721708,1.009412,42115.0,42113.0,0.00047572]
[1644780721709,0.49911366,42114.0,42113.0,0.00047572]
[1644780721908,0.59911366,42114.0,42113.0,0.00047572]
[1644780722110,0.64911366,42114.0,42113.0,0.00047572]
[1644780722311,0.5329,42114.0,42113.0,0.00047572]
[1644780722711,0.5329,42114.0,42113.0,0.0001]
[1644780723758,0.84954265,42114.0,42113.0,0.0001]
[1644780724161,0.96575631,42114.0,42113.0,0.0001]
[1644780724357,0.81575631,42114.0,42113.0,0.0001]
[1644780724857,0.3829,42114.0,42113.0,0.0001]
[1644780725058,0.4329,42114.0,42113.0,0.0001]
[1644780725558,0.54911366,42114.0,42113.0,0.0001]
[1644780725760,0.5329,42114.0,42113.0,0.0001]
[1644780725959,0.4829,42114.0,42113.0,0.0001]
[1644780726161,0.3829,42114.0,42113.0,0.0001]
[1644780726360,0.059388,42118.0,42114.0,0.29099678]
[1644780726361,0.118775,42118.0,42114.0,0.29099678]
[1644780726558,0.009509,42119.0,42114.0,0.29099678]
[1644780726559,0.00988174,42119.0,42114.0,0.29099678]
[1644780727414,0.068893,42119.0,42114.0,0.29099678]
[1644780727617,0.51695605,42124.0,42114.0,0.29099678]
[1644780727618,0.059383,42122.0,42114.0,0.29099678]
[1644780727816,0.00037275,42119.0,42114.0,0.29099678]
[1644780728615,0.059384,42119.0,42114.0,0.29099678]
[1644780729014,0.05975675,42119.0,42114.0,0.29099678]
[1644780729420,0.11914375,42119.0,42114.0,0.29099678]
[1644780729816,0.118771,42119.0,42114.0,0.29099678]
[1644780730018,0.059387,42118.0,42114.0,0.29099678]
[1644780730416,0.059387,42118.0,42115.0,0.27161697]
[1644780730856,0.059387,42118.0,42115.0,0.28361671]
[1644780731058,0.059387,42118.0,42114.0,0.29099678]
[1644780731559,0.05885069,42118.0,42114.0,0.29099678]
[1644780731858,0.05885069,42118.0,42115.0,0.24991953]
[1644780732758,0.05885069,42118.0,42115.0,0.27139264]
[1644780733560,0.05885069,42118.0,42114.0,0.28599678]
[1644780733760,0.05885069,42118.0,42114.0,0.49764791]
[1644780733959,0.05885069,42118.0,42115.0,0.2693553]
[1644780734621,0.05885069,42118.0,42114.0,0.49764791]
[1644780736910,0.05885069,42118.0,42116.0,0.06359245]
[1644780737215,0.19380106,42127.0,42116.0,0.06359245]
[1644780737216,0.27772362,42130.0,42116.0,0.11359245]
[1644780737411,0.00037275,42119.0,42116.0,0.11359245]
[1644780737609,0.00037275,42119.0,42117.0,0.33317]
[1644780737810,0.00037275,42119.0,42118.0,0.29725746]
[1644780738011,0.00037275,42119.0,42118.0,0.63042746]
[1644780738462,0.00037274,42121.0,42118.0,0.29725746]
[1644780738662,0.00037274,42121.0,42119.0,0.33317]
[1644780738865,0.00037274,42121.0,42119.0,0.2525956]
[1644780739063,0.00037274,42121.0,42120.0,0.38317]
[1644780739462,0.059378,42126.0,42120.0,0.38317]
[1644780739664,0.00037273,42123.0,42120.0,0.05016229]
[1644780740066,0.00037273,42123.0,42121.0,0.33317]
[1644780740767,0.059378,42126.0,42121.0,0.33317]
[1644780740966,0.00037273,42124.0,42121.0,0.00016229]
[1644780741168,0.00037273,42124.0,42120.0,0.31926485]
[1644780741966,0.059379,42125.0,42120.0,0.00016229]
[1644780742211,0.059379,42125.0,42119.0,0.2525956]
[1644780742212,0.05975273,42124.0,42119.0,0.2525956]
[1644780742416,0.05975273,42124.0,42120.0,0.26824696]
[1644780742611,0.00037273,42124.0,42123.0,0.05]
[1644780742812,0.00037273,42124.0,42121.0,0.00016229]
[1644780743012,0.00037273,42124.0,42120.0,0.00016229]
[1644780743211,0.059379,42125.0,42119.0,0.25275789]
[1644780743411,0.059377,42126.0,42119.0,0.5258128]
[1644780743612,0.00037272,42125.0,42119.0,0.5258128]
[1644780744218,0.00037272,42125.0,42119.0,0.00016229]
[1644780744412,0.059377,42126.0,42116.0,0.29712266]
[1644780744612,0.05938,42124.0,42116.0,0.29712266]
[1644780744813,0.059386,42123.0,42116.0,0.29712266]
[1644780745213,0.059386,42123.0,42118.0,0.19907691]
[1644780746060,0.059389,42122.0,42118.0,0.19907691]
[1644780746260,0.118776,42122.0,42118.0,0.19907691]
[1644780746460,0.059388,42121.0,42118.0,0.19907691]
[1644780746862,0.059388,42121.0,42116.0,0.00016229]
[1644780747062,0.059388,42121.0,42115.0,0.00016229]
[1644780747262,0.059388,42121.0,42114.0,0.28599678]
[1644780747463,0.0476,42120.0,42114.0,0.28599678]
[1644780747767,0.178161,42119.0,42114.0,0.28599678]
[1644780747962,0.225761,42119.0,42114.0,0.28599678]
[1644780748164,0.22613239,42119.0,42114.0,0.28599678]
[1644780749164,0.225761,42119.0,42114.0,0.28599678]
[1644780749364,0.22613239,42119.0,42114.0,0.28599678]
[1644780749618,0.118785,42118.0,42114.0,0.28599678]
[1644780749810,0.059392,42118.0,42114.0,0.28599678]
[1644780752111,0.059391,42116.0,42114.0,0.28599678]
[1644780752312,0.059391,42115.0,42114.0,0.28599678]
[1644780753462,0.059391,42115.0,42114.0,0.28588372]
[1644780754063,0.059391,42115.0,42114.0,0.28088372]